[Event "Continental-ch Women America 2017"]
[Site "Villa Martelli"]
[Date "2017.09.14"]
[Round "9"]
[White "Cordero, Daniela"]
[Black "Besso, Guadalupe"]
[Result "0-1"]
[ECO "A48"]
[WhiteElo "2005"]
[BlackElo "1994"]
[Annotator "NA RC"]
[PlyCount "146"]
[EventDate "2017.??.??"]
[EventType "swiss"]
[EventCountry "ARG"]
[SourceTitle "playchess.com"]
[Source "ChessBase"]
[SourceQuality "1"]
[TimeControl "40/5400+30:1800+30"]

{[%evp 15,146,-12,30,18,36,48,49,43,39,41,37,19,22,0,8,0,14,-37,0,32767,35,0,42,36,82,32767,127,103,197,92,97,139,129,157,199,232,246,281,347,283,264,115,165,164,168,106,200,147,206,161,218,199,202,102,167,113,153,100,151,135,139,123,217,105,113,103,106,103,105,112,91,91,127,112,138,135,142,116,112,108,121,122,120,108,110,97,108,108,149,151,151,144,186,164,183,32767,32767,32767,32767,32767,32767,32767,32767,32767,191,222,264,264,289,257,219,252,242,269,258,275,418,401,434,514,445,531,495,431,782,301,406,520,766,-1007,-1227,-1283,-1197]} 1. d4 {[%emt 0:03:51]} Nf6 {[%emt 0:00:12]} 2. Nf3 {[%emt 0:00:20]} g6 {[%emt 0:00:05]} 3. c4 {[%emt 0:00:23]} Bg7 {[%emt 0:00:15]} 4. g3 {[%emt 0:00:24]} O-O {[%emt 0:00:11]} 5. Bg2 {[%emt 0:00:04]} d6 {[%emt 0:00:22]} 6. O-O {[%emt 0:00:11]} Nc6 {[%emt 0:00:22]} 7. d5 {[%emt 0:00:42]} Na5 {[%emt 0:00:09]} 8. Nfd2 {[%emt 0:00:28]} c5 {[%emt 0:00:16]} 9. a3 {[%emt 0:00:31]} b6 {[%emt 0:03:24]} 10. b4 {[%emt 0:02:03] E60: King's Indian: Unusual lines and Fianchetto Variation without Nc3} Nb7 {[%emt 0:01:42] LiveBook: 14 Partien} 11. Bb2 {[%emt 0:01:22]} a6 $146 {[%emt 0:02:44]} ({Find the theoretical novelty and annotate with similar games:} 11... Qc7 12. Nc3 e5 13. dxe6 Bxe6 14. Rc1 Rad8 15. Qb3 Qe7 16. Rfd1 a6 17. Nde4 b5 18. Nxf6+ Bxf6 {1-0 (54) Maiorov,N (2531)-Deslandes,P (2356) Avoine 2017}) 12. Nc3 {[%emt 0:02:33]} Bd7 {[%emt 0:00:45]} 13. h3 {[%emt 0:08:53]} b5 {[%emt 0:14:58]} 14. cxb5 {[%emt 0:13:46]} axb5 {[%emt 0:03:06]} 15. Rc1 {[%emt 0:14:32]} Qb6 {[%emt 0:00:56]} 16. e4 {[%emt 0:00:50]} (16. e3 $11) 16... Rfc8 {[%emt 0:08:53]} 17. Qb3 {[%emt 0:21:48]} h5 {[%emt 0:11:02]} 18. Kh1 {[%emt 0:02:26]} h4 {[%emt 0:08:24]} 19. g4 {[%emt 0:02:32]} Bh6 {[%emt 0:03:42]} 20. Rcd1 {[%emt 0:09:35]} c4 $2 {[%emt 0:10:53]} (20... cxb4 $1 $15 {keeps the upper hand.} 21. axb4 g5) 21. Qc2 {[%emt 0:00:15]} Bf4 {[%emt 0:01:14]} 22. Ne2 {[%emt 0:02:33]} (22. Nf3 $18) 22... Be5 {[%emt 0:01:37]} 23. Bxe5 {[%emt 0:01:07]} dxe5 {[%emt 0:00:05] [#]} 24. Qc3 $1 {[%emt 0:00:18]} Qa7 {[%emt 0:10:42]} 25. Nb1 {[%emt 0:04:50]} ({Much less strong is} 25. Qxe5 Qb6) 25... Re8 {[%emt 0:07:11]} 26. Qxe5 {[%emt 0:00:24]} Qb6 {[%emt 0:01:02]} 27. Qg5 {[%emt 0:00:16]} e5 {[%emt 0:01:19]} 28. Qxh4 {[%emt 0:00:51]} (28. dxe6 $18 Qxe6 29. Qxh4) 28... Kg7 {[%emt 0:00:36]} 29. Qg3 {[%emt 0:00:19]} Nd6 {[%emt 0:00:43]} 30. Nec3 {[%emt 0:00:18]} Re7 {[%emt 0:05:46]} (30... g5 $16 31. Kg1 Bc8) 31. Kg1 {[%emt 0:01:25]} Rae8 {[%emt 0:00:23]} (31... g5 $16 32. Rd2 Qa7) 32. Rfe1 {[%emt 0:00:08]} Bc8 {[%emt 0:01:57]} 33. Re3 {[%emt 0:03:03]} g5 {[%emt 0:00:15]} 34. Bf3 {[%emt 0:01:20]} (34. Qf3 $18) 34... Rh8 {[%emt 0:00:10]} 35. Kf1 {[%emt 0:01:51]} Rh4 {[%emt 0:00:39]} 36. Rd2 {[%emt 0:01:05]} Re8 {[%emt 0:00:32]} 37. Bg2 {[%emt 0:00:27]} Bd7 {[%emt 0:00:52]} 38. Re1 {[%emt 0:00:25]} Qa7 {[%emt 0:00:34]} (38... Nh7 $16 {might work better.} 39. Rc2 f6) 39. Qe3 {[%emt 0:00:37]} (39. Ra2 $18 {and White stays clearly on top.}) 39... Qxe3 {[%emt 0:00:46]} 40. Rxe3 {[%emt 0:00:00]} ({But not} 40. fxe3 Reh8 $11) 40... Ra8 {[%emt 0:00:12]} 41. Ne2 {[%emt 0:06:10]} Rhh8 {[%emt 0:02:57]} 42. Ng3 {[%emt 0:02:39]} Ra7 {[%emt 0:02:55]} 43. Ke2 {[%emt 0:06:44]} Ra6 {[%emt 0:02:14]} 44. Kd1 {[%emt 0:00:31]} Rc8 {[%emt 0:03:15]} 45. Kc2 {[%emt 0:01:26]} Ra7 {[%emt 0:04:27]} 46. Rc3 {[%emt 0:02:21]} Rh8 {[%emt 0:00:32]} 47. Re2 {[%emt 0:00:36]} Rh7 {[%emt 0:01:14]} 48. Nd2 {[%emt 0:00:28]} Nfe8 {[%emt 0:01:09]} 49. Ndf1 {[%emt 0:00:51]} f6 {[%emt 0:01:19]} 50. Ne3 {[%emt 0:01:19]} Kf7 {[%emt 0:00:33]} 51. Re1 {[%emt 0:01:13]} Ng7 {[%emt 0:00:22]} 52. Ra1 {[%emt 0:04:54]} Rh8 {[%emt 0:00:36]} 53. Kb2 {[%emt 0:01:40]} Rha8 {[%emt 0:00:15]} 54. Bf3 {[%emt 0:01:07]} Rh8 {[%emt 0:00:12]} 55. Rh1 {[%emt 0:00:28]} Ke7 {[%emt 0:00:30]} 56. Nh5 {[%emt 0:00:45]} Nxh5 {[%emt 0:00:14]} 57. gxh5 {[%emt 0:00:04]} Be8 {[%emt 0:00:11]} 58. h4 {[%emt 0:00:16]} gxh4 {[%emt 0:00:52]} 59. Rxh4 {[%emt 0:00:10]} Bg6 {[%emt 0:08:21]} 60. Rc1 {[%emt 0:00:39]} Bh7 {[%emt 0:01:42]} 61. Rg1 {[%emt 0:00:42]} Kf7 {[%emt 0:00:41]} 62. Rhg4 {[%emt 0:02:02]} Rha8 {[%emt 0:00:35]} 63. Rg7+ {[%emt 0:00:59]} Kf8 {[%emt 0:00:05] [#]} 64. Rxa7 $1 {[%emt 0:00:25]} Rxa7 {[%emt 0:00:03]} 65. Rg4 {[%emt 0:01:15]} Rg7 {[%emt 0:00:30]} (65... Re7 {is a better defense.} 66. Bg2 Rf7) 66. Rxg7 {[%emt 0:01:36]} Kxg7 {[%emt 0:00:04] [#]} 67. a4 $1 {[%emt 0:00:05]} bxa4 {[%emt 0:00:26]} 68. Ka3 {[%emt 0:00:06]} c3 {[%emt 0:05:25]} 69. Kxa4 {[%emt 0:00:21]} Nxe4 {[%emt 0:00:22]} 70. Ka3 $2 {[%emt 0:01:46]} (70. Bxe4 Bxe4 71. Kb3) 70... Nd2 {[%emt 0:00:24]} 71. Be2 {[%emt 0:00:23]} Kf7 {[%emt 0:01:35]} 72. Nc4 $4 {[%emt 0:02:03]} (72. b5 $18 Ke7 73. b6) 72... c2 {[%emt 0:00:17]} 73. Kb2 {[%emt 0:01:07] [#]} Nb3 $19 {[%emt 0:00:05]} 0-1